[Event "RUS-ch Men Blitz 2019"]
[Site "Sochi"]
[Date "2019.10.17"]
[Round "11.18"]
[White "Zakhartsov, Vladimir"]
[Black "Shubin, Kirill"]
[Result "0-1"]
[ECO "C03"]
[WhiteElo "2514"]
[BlackElo "2416"]
[Annotator "ChessBase"]
[PlyCount "96"]
[EventDate "2019.10.17"]
[EventType "swiss"]
[EventCountry "RUS"]
[SourceTitle "playchess.com"]
[Source "ChessBase"]
[SourceQuality "1"]
[TimeControl "180+2"]

1. e4 {[%emt 0:00:00]} e6 {[%emt 0:00:00]} 2. d4 d5 3. Nd2 {[%emt 0:00:00]} Be7 {[%emt 0:00:00]} 4. Bd3 {[%emt 0:00:01]} c5 {[%emt 0:00:03]} 5. dxc5 {[%emt 0:00:02]} Nf6 {[%emt 0:00:02]} 6. Qe2 {[%emt 0:00:01]} O-O {[%emt 0:00:02]} 7. Ngf3 {[%emt 0:00:01]} a5 {[%emt 0:00:01]} 8. O-O {[%emt 0:00:09]} Na6 {[%emt 0:00:04]} 9. e5 {[%emt 0:00:06]} Nd7 {[%emt 0:00:01]} 10. c3 {[%emt 0:00:01]} Naxc5 {[%emt 0:00:03]} 11. Bc2 {[%emt 0:00:03]} b5 {[%emt 0:00:02]} 12. Nd4 {[%emt 0:00:21]} Ba6 {[%emt 0:00:10]} 13. b4 {[%emt 0:00:33]} axb4 {[%emt 0:00:33]} 14. cxb4 {[%emt 0:00:01]} Na4 {[%emt 0:00:01]} 15. a3 {[%emt 0:00:08]} Nab6 {[%emt 0:00:17]} 16. f4 {[%emt 0:00:35]} Nc4 {[%emt 0:00:08]} 17. Nxc4 {[%emt 0:00:07]} bxc4 {[%emt 0:00:08]} 18. Rf3 {[%emt 0:00:04]} g6 {[%emt 0:00:24]} 19. Be3 {[%emt 0:00:23]} Bb7 {[%emt 0:00:10]} 20. Qe1 {[%emt 0:00:19]} Re8 {[%emt 0:00:07]} 21. h3 {[%emt 0:00:08]} Bf8 {[%emt 0:00:07]} 22. Kh2 {[%emt 0:00:02]} Bg7 {[%emt 0:00:06]} 23. Nb5 {[%emt 0:00:02]} Bf8 {[%emt 0:00:10]} 24. Bd4 {[%emt 0:00:07]} Qb8 {[%emt 0:00:17]} 25. Qh4 {[%emt 0:00:10]} Bc6 {[%emt 0:00:06]} 26. Nc3 {[%emt 0:00:12]} Be7 {[%emt 0:00:10]} 27. Qh6 {[%emt 0:00:03]} Bf8 {[%emt 0:00:01]} 28. Qh4 {[%emt 0:00:01]} Be7 {[%emt 0:00:00]} 29. Qe1 {[%emt 0:00:03]} Qd8 {[%emt 0:00:06]} 30. Qb1 {[%emt 0:00:08]} Bf8 {[%emt 0:00:04]} 31. Qb2 {[%emt 0:00:01]} Bg7 {[%emt 0:00:03]} 32. b5 {[%emt 0:00:04]} Bb7 33. a4 f6 {[%emt 0:00:04]} 34. exf6 {[%emt 0:00:04]} Bxf6 {[%emt 0:00:03]} 35. Ne2 {[%emt 0:00:00]} Bxd4 {[%emt 0:00:06]} 36. Qxd4 {[%emt 0:00:02]} e5 {[%emt 0:00:18]} 37. fxe5 {[%emt 0:00:02]} Nxe5 {[%emt 0:00:01]} 38. Rg3 {[%emt 0:00:01]} Qf6 {[%emt 0:00:01]} 39. a5 {[%emt 0:00:05]} Rab8 {[%emt 0:00:09]} 40. a6 {[%emt 0:00:04]} Ba8 {[%emt 0:00:01]} 41. a7 {[%emt 0:00:01]} Rxb5 {[%emt 0:00:06]} 42. Ba4 {[%emt 0:00:02]} Rb2 {[%emt 0:00:02]} 43. Qxb2 {[%emt 0:00:03]} Nf3+ {[%emt 0:00:01]} 44. Rxf3 {[%emt 0:00:02]} Qxb2 {[%emt 0:00:00]} 45. Raf1 {[%emt 0:00:04]} Rxe2 {[%emt 0:00:03]} 46. Rf8+ {[%emt 0:00:02]} Kg7 {[%emt 0:00:01]} 47. R8f7+ {[%emt 0:00:00]} Kh6 {[%emt 0:00:01]} 48. Rg1 {[%emt 0:00:02]} d4 {[%emt 0:00:03]} 0-1

[Event "RUS-ch Men Blitz 2019"]
[Site "Sochi"]
[Date "2019.10.17"]
[Round "11.19"]
[White "Papin, Vasily"]
[Black "Pogromsky, Mikhail"]
[Result "1-0"]
[ECO "A13"]
[WhiteElo "2481"]
[BlackElo "2411"]
[Annotator "ChessBase"]
[PlyCount "97"]
[EventDate "2019.10.17"]
[EventType "swiss"]
[EventCountry "RUS"]
[SourceTitle "playchess.com"]
[Source "ChessBase"]
[SourceQuality "1"]
[TimeControl "180+2"]

1. c4 {[%emt 0:00:00]} e6 {[%emt 0:00:04]} 2. g3 {[%emt 0:00:00]} d5 {[%emt 0:00:01]} 3. Bg2 {[%emt 0:00:01]} Nf6 {[%emt 0:00:01]} 4. Nf3 {[%emt 0:00:01]} g6 {[%emt 0:00:01]} 5. b3 {[%emt 0:00:13]} Bg7 {[%emt 0:00:01]} 6. Bb2 {[%emt 0:00:00]} O-O {[%emt 0:00:12]} 7. O-O {[%emt 0:00:02]} b6 {[%emt 0:00:03]} 8. cxd5 {[%emt 0:00:14]} exd5 {[%emt 0:00:01]} 9. d4 {[%emt 0:00:06]} Bb7 {[%emt 0:00:10]} 10. Nc3 {[%emt 0:00:02]} Re8 {[%emt 0:00:14]} 11. Rc1 {[%emt 0:00:01]} c6 {[%emt 0:00:02]} 12. Ne5 {[%emt 0:00:09]} Nfd7 {[%emt 0:00:16]} 13. Nf3 {[%emt 0:00:26]} Na6 {[%emt 0:00:18]} 14. Re1 {[%emt 0:00:07]} f5 {[%emt 0:00:01]} 15. Ba3 {[%emt 0:00:08]} Qf6 {[%emt 0:00:19]} 16. e3 {[%emt 0:00:01]} Nc7 {[%emt 0:00:03]} 17. Qd2 {[%emt 0:00:08]} a5 {[%emt 0:00:08]} 18. Na4 {[%emt 0:00:06]} Nb5 {[%emt 0:00:07]} 19. Bb2 {[%emt 0:00:03]} Qd8 {[%emt 0:00:17]} 20. Red1 {[%emt 0:00:26]} Nd6 {[%emt 0:00:03]} 21. Ne5 {[%emt 0:00:02]} Nxe5 {[%emt 0:00:07]} 22. dxe5 {[%emt 0:00:01]} Ne4 {[%emt 0:00:05]} 23. Qd3 {[%emt 0:00:21]} b5 {[%emt 0:00:12]} 24. Nc5 {[%emt 0:00:07]} Nxc5 {[%emt 0:00:02]} 25. Rxc5 {[%emt 0:00:00]} Bxe5 {[%emt 0:00:02]} 26. Bxe5 {[%emt 0:00:06]} Rxe5 {[%emt 0:00:00]} 27. a4 {[%emt 0:00:01]} Qd6 {[%emt 0:00:11]} 28. Qd4 {[%emt 0:00:05]} b4 {[%emt 0:00:23]} 29. Rdc1 {[%emt 0:00:02]} Ree8 {[%emt 0:00:07]} 30. Rxc6 {[%emt 0:00:33]} Bxc6 {[%emt 0:00:05]} 31. Rxc6 {[%emt 0:00:01]} Qe5 {[%emt 0:00:02]} 32. Qc5 {[%emt 0:00:18]} Red8 {[%emt 0:00:10]} 33. Rc7 {[%emt 0:00:03]} Kh8 {[%emt 0:00:10]} 34. h4 {[%emt 0:00:05]} Qa1+ {[%emt 0:00:06]} 35. Kh2 {[%emt 0:00:01]} Qe5 {[%emt 0:00:01]} 36. Bf1 {[%emt 0:00:04]} Kg8 {[%emt 0:00:02]} 37. Bg2 Kh8 38. Qc6 {[%emt 0:00:07]} Qd6 {[%emt 0:00:03]} 39. Qb7 {[%emt 0:00:01]} Qf6 {[%emt 0:00:03]} 40. Rxh7+ Kg8 41. Bxd5+ {[%emt 0:00:06]} Rxd5 {[%emt 0:00:01]} 42. Qxd5+ {[%emt 0:00:01]} Kxh7 {[%emt 0:00:01]} 43. Qxa8 {[%emt 0:00:00]} Qc3 {[%emt 0:00:01]} 44. Qd5 {[%emt 0:00:02]} Qc2 {[%emt 0:00:05]} 45. Kg2 {[%emt 0:00:01]} Qc3 {[%emt 0:00:01]} 46. h5 {[%emt 0:00:02]} gxh5 {[%emt 0:00:01]} 47. Qxf5+ {[%emt 0:00:00]} Kh6 {[%emt 0:00:01]} 48. Qe6+ {[%emt 0:00:03]} Kg7 {[%emt 0:00:01]} 49. e4 {[%emt 0:00:01]} 1-0

[Event "RUS-ch Men Blitz 2019"]
[Site "Sochi"]
[Date "2019.10.17"]
[Round "11.20"]
[White "Gurvich, Vitaly"]
[Black "Potapov, Pavel"]
[Result "0-1"]
[ECO "A88"]
[WhiteElo "2278"]
[BlackElo "2489"]
[Annotator "ChessBase"]
[PlyCount "94"]
[EventDate "2019.10.17"]
[EventType "swiss"]
[EventCountry "RUS"]
[SourceTitle "playchess.com"]
[Source "ChessBase"]
[SourceQuality "1"]
[TimeControl "180+2"]

1. c4 {[%emt 0:00:00]} f5 {[%emt 0:00:00]} 2. g3 {[%emt 0:00:01]} Nf6 {[%emt 0:00:00]} 3. Bg2 {[%emt 0:00:01]} g6 {[%emt 0:00:01]} 4. Nc3 {[%emt 0:00:01]} Bg7 {[%emt 0:00:01]} 5. d4 {[%emt 0:00:01]} O-O {[%emt 0:00:04]} 6. Nf3 {[%emt 0:00:01]} d6 {[%emt 0:00:01]} 7. O-O {[%emt 0:00:02]} c6 {[%emt 0:00:01]} 8. Qb3 {[%emt 0:00:08]} Kh8 {[%emt 0:00:05]} 9. Rd1 {[%emt 0:00:01]} Na6 {[%emt 0:00:07]} 10. Qa3 {[%emt 0:00:12]} Nc7 {[%emt 0:00:03]} 11. b4 {[%emt 0:00:02]} Qe8 {[%emt 0:00:07]} 12. Bf4 {[%emt 0:00:46]} Nh5 {[%emt 0:00:10]} 13. c5 {[%emt 0:00:43]} Nxf4 {[%emt 0:00:17]} 14. gxf4 {[%emt 0:00:01]} Be6 {[%emt 0:00:39]} 15. e3 {[%emt 0:00:07]} Bg8 {[%emt 0:00:05]} 16. cxd6 {[%emt 0:00:23]} exd6 {[%emt 0:00:01]} 17. b5 {[%emt 0:00:00]} Nxb5 {[%emt 0:01:01]} 18. Nxb5 {[%emt 0:00:01]} cxb5 {[%emt 0:00:00]} 19. Qxd6 {[%emt 0:00:02]} Rf6 {[%emt 0:00:11]} 20. Qb4 {[%emt 0:00:06]} a5 {[%emt 0:00:02]} 21. Qd2 {[%emt 0:00:03]} b4 {[%emt 0:00:05]} 22. Ne5 {[%emt 0:00:04]} Rb6 {[%emt 0:00:05]} 23. Rab1 {[%emt 0:00:08]} Rd8 {[%emt 0:00:02]} 24. a3 {[%emt 0:00:09]} Qa4 {[%emt 0:00:12]} 25. axb4 {[%emt 0:00:07]} axb4 {[%emt 0:00:01]} 26. Nd3 {[%emt 0:00:14]} b3 {[%emt 0:00:09]} 27. Nc5 {[%emt 0:00:02]} Qb5 {[%emt 0:00:07]} 28. Rb2 {[%emt 0:00:16]} h6 {[%emt 0:00:08]} 29. Bf1 {[%emt 0:00:09]} Qb4 {[%emt 0:00:03]} 30. Qxb4 {[%emt 0:00:03]} Rxb4 {[%emt 0:00:01]} 31. Rdb1 {[%emt 0:00:00]} g5 {[%emt 0:00:06]} 32. fxg5 {[%emt 0:00:02]} hxg5 {[%emt 0:00:00]} 33. Nxb3 {[%emt 0:00:01]} f4 {[%emt 0:00:02]} 34. Nc5 {[%emt 0:00:04]} Rxb2 {[%emt 0:00:01]} 35. Rxb2 {[%emt 0:00:01]} fxe3 {[%emt 0:00:02]} 36. fxe3 {[%emt 0:00:00]} Rxd4 {[%emt 0:00:02]} 37. Rxb7 {[%emt 0:00:04]} Rd1 {[%emt 0:00:06]} 38. Kf2 {[%emt 0:00:05]} Rd2+ {[%emt 0:00:00]} 39. Kf3 {[%emt 0:00:03]} Bd5+ {[%emt 0:00:02]} 40. e4 {[%emt 0:00:02]} Bxb7 {[%emt 0:00:01]} 41. Kg4 {[%emt 0:00:02]} Bc8+ {[%emt 0:00:01]} 42. Kxg5 {[%emt 0:00:02]} Rxh2 {[%emt 0:00:02]} 43. Bb5 {[%emt 0:00:02]} Bh6+ {[%emt 0:00:03]} 44. Kf6 {[%emt 0:00:01]} Rh5 {[%emt 0:00:02]} 45. e5 {[%emt 0:00:03]} Bg7+ {[%emt 0:00:01]} 46. Kf7 {[%emt 0:00:01]} Rxe5 {[%emt 0:00:02]} 47. Bd7 {[%emt 0:00:03]} Rxc5 0-1

[Event "RUS-ch Men Blitz 2019"]
[Site "Sochi"]
[Date "2019.10.17"]
[Round "11.21"]
[White "Gutenev, Alexander"]
[Black "Remizov, Yaroslav"]
[Result "1/2-1/2"]
[ECO "B07"]
[WhiteElo "2469"]
[BlackElo "2394"]
[Annotator "ChessBase"]
[PlyCount "102"]
[EventDate "2019.10.17"]
[EventType "swiss"]
[EventCountry "RUS"]
[SourceTitle "playchess.com"]
[Source "ChessBase"]
[SourceQuality "1"]
[TimeControl "180+2"]

1. e4 d6 2. d4 {[%emt 0:00:00]} Nf6 {[%emt 0:00:00]} 3. Nc3 {[%emt 0:00:01]} Nbd7 {[%emt 0:00:00]} 4. Nf3 {[%emt 0:00:01]} e5 {[%emt 0:00:00]} 5. Bc4 {[%emt 0:00:04]} Be7 {[%emt 0:00:01]} 6. O-O {[%emt 0:00:02]} O-O {[%emt 0:00:02]} 7. h3 {[%emt 0:00:02]} c6 {[%emt 0:00:01]} 8. a4 {[%emt 0:00:01]} h6 {[%emt 0:00:19]} 9. Re1 {[%emt 0:00:10]} Re8 {[%emt 0:00:01]} 10. Ba2 {[%emt 0:00:10]} Bf8 {[%emt 0:00:09]} 11. dxe5 Nxe5 {[%emt 0:00:15]} 12. Nd4 {[%emt 0:00:05]} g6 {[%emt 0:01:04]} 13. Be3 {[%emt 0:00:09]} Bg7 {[%emt 0:00:30]} 14. f4 {[%emt 0:00:02]} Ned7 {[%emt 0:00:11]} 15. Bf2 {[%emt 0:00:11]} Nc5 {[%emt 0:00:17]} 16. Qf3 {[%emt 0:00:28]} Ne6 {[%emt 0:00:09]} 17. Rad1 {[%emt 0:00:02]} Qc7 {[%emt 0:00:01]} 18. Nde2 {[%emt 0:00:12]} g5 {[%emt 0:00:14]} 19. f5 {[%emt 0:00:55]} g4 {[%emt 0:00:00]} 20. Qd3 {[%emt 0:00:26]} Ng5 {[%emt 0:00:04]} 21. Ng3 {[%emt 0:00:01]} gxh3 {[%emt 0:00:03]} 22. Qxd6 {[%emt 0:00:02]} Qxd6 {[%emt 0:00:05]} 23. Rxd6 {[%emt 0:00:01]} hxg2 {[%emt 0:00:03]} 24. Kxg2 {[%emt 0:00:07]} Ng4 {[%emt 0:00:01]} 25. Bd4 {[%emt 0:00:15]} Bf8 {[%emt 0:00:06]} 26. Bc5 {[%emt 0:00:03]} Bxd6 {[%emt 0:00:01]} 27. Bxd6 {[%emt 0:00:01]} Bd7 {[%emt 0:00:08]} 28. e5 {[%emt 0:00:01]} Rad8 {[%emt 0:00:02]} 29. Bc7 {[%emt 0:00:02]} Rc8 {[%emt 0:00:01]} 30. Bd6 {[%emt 0:00:01]} Rcd8 {[%emt 0:00:02]} 31. Nce4 {[%emt 0:00:08]} Kg7 {[%emt 0:00:07]} 32. Nh5+ {[%emt 0:00:05]} Kh8 {[%emt 0:00:01]} 33. Nef6 {[%emt 0:00:01]} Bxf5 {[%emt 0:00:01]} 34. Nxe8 {[%emt 0:00:03]} Rxe8 {[%emt 0:00:01]} 35. Ng3 {[%emt 0:00:04]} Bxc2 {[%emt 0:00:01]} 36. e6 {[%emt 0:00:10]} Nxe6 {[%emt 0:00:04]} 37. Nh5 {[%emt 0:00:04]} Bg6 {[%emt 0:00:02]} 38. Rh1 {[%emt 0:00:03]} Bxh5 {[%emt 0:00:02]} 39. Rxh5 {[%emt 0:00:01]} Kg7 {[%emt 0:00:02]} 40. Ra5 {[%emt 0:00:02]} a6 {[%emt 0:00:00]} 41. Rf5 {[%emt 0:00:00]} Ng5 {[%emt 0:00:04]} 42. Rf4 {[%emt 0:00:04]} Nf6 {[%emt 0:00:04]} 43. Bb4 {[%emt 0:00:01]} Re2+ {[%emt 0:00:01]} 44. Kf1 {[%emt 0:00:01]} Rxb2 {[%emt 0:00:01]} 45. Bc3 {[%emt 0:00:02]} Rxa2 46. Bxf6+ Kg6 47. Bc3 {[%emt 0:00:02]} f5 {[%emt 0:00:03]} 48. Rd4 {[%emt 0:00:01]} Ne4 {[%emt 0:00:01]} 49. Bb4 {[%emt 0:00:01]} Rxa4 {[%emt 0:00:01]} 50. Ke2 {[%emt 0:00:02]} c5 {[%emt 0:00:01]} 51. Bxc5 {[%emt 0:00:01]} Ra2+ {[%emt 0:00:01]} 1/2-1/2

[Event "RUS-ch Men Blitz 2019"]
[Site "Sochi"]
[Date "2019.10.17"]
[Round "11.22"]
[White "Goltsev, Dmitry"]
[Black "Sadovsky, Artem"]
[Result "1-0"]
[ECO "B06"]
[WhiteElo "2309"]
[BlackElo "2411"]
[Annotator "NA"]
[PlyCount "147"]
[EventDate "2019.10.17"]
[EventType "swiss"]
[EventCountry "RUS"]
[SourceTitle "playchess.com"]
[Source "ChessBase"]
[SourceQuality "1"]
[TimeControl "180+2"]

1. e4 {[%emt 0:00:00]} g6 {[%emt 0:00:00]} 2. Nf3 {[%emt 0:00:00]} Bg7 {[%emt 0:00:00]} 3. d4 d6 {[%emt 0:00:02]} 4. Nc3 {[%emt 0:00:02]} e5 {[%emt 0:00:01]} 5. dxe5 {[%emt 0:00:02]} dxe5 {[%emt 0:00:01]} 6. Qxd8+ Kxd8 {[%emt 0:00:01]} 7. Bc4 {[%emt 0:00:03]} f6 {[%emt 0:00:01]} 8. Be3 {[%emt 0:00:03]} Nd7 {[%emt 0:00:02]} 9. O-O-O {[%emt 0:00:02]} Bh6 {[%emt 0:00:01]} 10. Rhe1 {[%emt 0:00:03]} c6 {[%emt 0:00:03]} 11. Bxg8 {[%emt 0:00:07]} Bxe3+ {[%emt 0:00:02]} 12. Rxe3 {[%emt 0:00:01]} Rxg8 {[%emt 0:00:01]} 13. Red3 {[%emt 0:00:03]} Ke7 {[%emt 0:00:04]} 14. h3 {[%emt 0:00:19]} Nc5 {[%emt 0:00:04]} 15. R3d2 {[%emt 0:00:01]} a5 {[%emt 0:00:01]} 16. Ne1 {[%emt 0:00:12]} Be6 {[%emt 0:00:23]} 17. Nd3 {[%emt 0:00:02]} Nxd3+ {[%emt 0:00:05]} 18. Rxd3 {[%emt 0:00:04]} b5 {[%emt 0:00:21]} 19. a4 {[%emt 0:01:06]} b4 {[%emt 0:00:05]} 20. Nb1 {[%emt 0:00:01]} c5 {[%emt 0:00:17]} 21. Rd6 {[%emt 0:00:18]} Rgc8 {[%emt 0:00:11]} 22. Rb6 {[%emt 0:00:04]} Rab8 {[%emt 0:00:19]} 23. Ra6 {[%emt 0:00:01]} Ra8 {[%emt 0:00:29]} 24. Rdd6 {[%emt 0:00:05]} Bc4 {[%emt 0:00:31]} 25. Rab6 {[%emt 0:00:07]} Rab8 {[%emt 0:00:04]} 26. Rxf6 {[%emt 0:00:03]} Rxb6 {[%emt 0:00:08]} 27. Rxb6 {[%emt 0:00:02]} Bf1 {[%emt 0:00:01]} 28. Rb7+ {[%emt 0:00:08]} Kf6 {[%emt 0:00:03]} 29. g3 {[%emt 0:00:02]} Bxh3 {[%emt 0:00:16]} 30. Rxh7 {[%emt 0:00:01]} Bg2 {[%emt 0:00:02]} 31. Nd2 {[%emt 0:00:04]} c4 {[%emt 0:00:03]} 32. c3 {[%emt 0:00:02]} Rd8 {[%emt 0:00:08]} 33. Nxc4 {[%emt 0:00:07]} Bxe4 {[%emt 0:00:04]} 34. cxb4 {[%emt 0:00:02]} axb4 {[%emt 0:00:02]} 35. Rh4 {[%emt 0:00:16]} Bd3 {[%emt 0:00:05]} 36. Nd2 {[%emt 0:00:03]} Rc8+ {[%emt 0:00:01]} 37. Kd1 {[%emt 0:00:01]} b3 {[%emt 0:00:05]} 38. Rb4 {[%emt 0:00:01]} Rh8 {[%emt 0:00:04]} 39. Nxb3 {[%emt 0:00:03]} Rh1+ {[%emt 0:00:02]} 40. Kd2 {[%emt 0:00:01]} Bf5 41. Nc5 {[%emt 0:00:03]} Rh2 {[%emt 0:00:06]} 42. Ke3 {[%emt 0:00:01]} Rh1 {[%emt 0:00:00]} 43. a5 {[%emt 0:00:01]} Re1+ {[%emt 0:00:03]} 44. Kd2 {[%emt 0:00:01]} Rf1 {[%emt 0:00:01]} 45. Ke2 {[%emt 0:00:01]} Rc1 {[%emt 0:00:01]} 46. Rb5 {[%emt 0:00:11]} e4 {[%emt 0:00:03]} 47. a6 {[%emt 0:00:01]} Bg4+ {[%emt 0:00:02]} 48. Ke3 {[%emt 0:00:02]} Re1+ {[%emt 0:00:01]} 49. Kd4 {[%emt 0:00:02]} Bf3 {[%emt 0:00:05]} 50. Ra5 {[%emt 0:00:01]} Rd1+ {[%emt 0:00:02]} 51. Kc3 {[%emt 0:00:03]} Rf1 {[%emt 0:00:02]} 52. a7 {[%emt 0:00:02]} e3 {[%emt 0:00:02]} 53. fxe3 {[%emt 0:00:01]} Rc1+ {[%emt 0:00:01]} 54. Kd2 {[%emt 0:00:02]} Rc4 {[%emt 0:00:01]} 55. Nd7+ {[%emt 0:00:04]} Ke7 {[%emt 0:00:02]} 56. Nb6 Rb4 57. a8=Q {[%emt 0:00:04]} Bxa8 {[%emt 0:00:02]} 58. Nxa8 {[%emt 0:00:01]} Rxb2+ {[%emt 0:00:01]} 59. Kc3 {[%emt 0:00:00]} Rg2 {[%emt 0:00:01]} 60. Rg5 Kf6 61. Rg4 {[%emt 0:00:03]} Kf5 {[%emt 0:00:01]} 62. Rf4+ {[%emt 0:00:03]} Ke5 {[%emt 0:00:01]} 63. g4 {[%emt 0:00:05]} Re2 {[%emt 0:00:04]} 64. Kd3 {[%emt 0:00:01]} Ra2 {[%emt 0:00:07]} 65. Nb6 {[%emt 0:00:01]} Ra3+ {[%emt 0:00:02]} 66. Ke2 {[%emt 0:00:01]} Ra1 {[%emt 0:00:01]} 67. Nc4+ Ke6 68. g5 {[%emt 0:00:03]} Rg1 {[%emt 0:00:02]} 69. Rf6+ {[%emt 0:00:01]} Kd5 {[%emt 0:00:01]} 70. Nb6+ {[%emt 0:00:06]} Ke4 {[%emt 0:00:02]} 71. Rxg6 {[%emt 0:00:03]} Rg2+ {[%emt 0:00:02]} 72. Kf1 {[%emt 0:00:02]} Rb2 {[%emt 0:00:01]} 73. Rf6 {[%emt 0:00:04]} Kxe3 {[%emt 0:00:03]} 74. Nc4+ {[%emt 0:00:01]} 1-0

[Event "RUS-ch Men Blitz 2019"]
[Site "Sochi"]
[Date "2019.10.17"]
[Round "11.23"]
[White "Antipov, Mikhail Al."]
[Black "Shcherbin, Matvei"]
[Result "1/2-1/2"]
[ECO "B40"]
[WhiteElo "2567"]
[BlackElo "2366"]
[Annotator "ChessBase"]
[PlyCount "58"]
[EventDate "2019.10.17"]
[EventType "swiss"]
[EventCountry "RUS"]
[SourceTitle "playchess.com"]
[Source "ChessBase"]
[SourceQuality "1"]
[TimeControl "180+2"]

1. e4 {[%emt 0:00:00]} c5 {[%emt 0:00:00]} 2. Nf3 e6 3. b3 {[%emt 0:00:01]} Nf6 {[%emt 0:00:00]} 4. e5 {[%emt 0:00:01]} Nd5 {[%emt 0:00:01]} 5. c4 {[%emt 0:00:02]} Nc7 {[%emt 0:00:01]} 6. Bb2 {[%emt 0:00:01]} Nc6 {[%emt 0:00:01]} 7. g3 {[%emt 0:00:41]} Be7 {[%emt 0:00:01]} 8. Bg2 {[%emt 0:00:04]} O-O {[%emt 0:00:03]} 9. Nc3 {[%emt 0:00:05]} f6 {[%emt 0:00:08]} 10. d4 {[%emt 0:00:50]} cxd4 {[%emt 0:00:09]} 11. Nxd4 {[%emt 0:00:01]} fxe5 {[%emt 0:00:16]} 12. Nc2 {[%emt 0:00:05]} d5 {[%emt 0:01:16]} 13. cxd5 {[%emt 0:00:06]} exd5 {[%emt 0:00:01]} 14. Nxd5 {[%emt 0:00:02]} Nxd5 {[%emt 0:00:13]} 15. Qxd5+ {[%emt 0:00:04]} Kh8 {[%emt 0:00:16]} 16. O-O {[%emt 0:00:02]} Qxd5 {[%emt 0:00:08]} 17. Bxd5 {[%emt 0:00:01]} Bh3 {[%emt 0:00:01]} 18. Rfe1 {[%emt 0:00:06]} Bc5 {[%emt 0:00:00]} 19. Ne3 {[%emt 0:00:09]} Rad8 {[%emt 0:00:08]} 20. Bxc6 {[%emt 0:01:00]} bxc6 {[%emt 0:00:00]} 21. Bc3 {[%emt 0:00:03]} Rd3 {[%emt 0:00:13]} 22. Rac1 {[%emt 0:00:01]} Bxe3 {[%emt 0:00:13]} 23. Rxe3 {[%emt 0:00:02]} Rxe3 {[%emt 0:00:02]} 24. fxe3 {[%emt 0:00:01]} e4 {[%emt 0:00:03]} 25. Rd1 {[%emt 0:00:09]} Kg8 {[%emt 0:00:04]} 26. Bb4 {[%emt 0:00:02]} Rf3 {[%emt 0:00:04]} 27. Rd8+ {[%emt 0:00:01]} Kf7 {[%emt 0:00:03]} 28. Rf8+ {[%emt 0:00:01]} Ke6 {[%emt 0:00:01]} 29. Rxf3 {[%emt 0:00:02]} exf3 {[%emt 0:00:02]} 1/2-1/2

[Event "RUS-ch Men Blitz 2019"]
[Site "Sochi"]
[Date "2019.10.17"]
[Round "11.24"]
[White "Belozerov, Andrei"]
[Black "Stambulian, Arsen"]
[Result "1-0"]
[ECO "C91"]
[WhiteElo "2515"]
[BlackElo "2306"]
[Annotator "ChessBase"]
[PlyCount "91"]
[EventDate "2019.10.17"]
[EventType "swiss"]
[EventCountry "RUS"]
[SourceTitle "playchess.com"]
[Source "ChessBase"]
[SourceQuality "1"]
[TimeControl "180+2"]

1. e4 {[%emt 0:00:00]} e5 {[%emt 0:00:00]} 2. Nf3 {[%emt 0:00:01]} Nc6 {[%emt 0:00:00]} 3. Bb5 {[%emt 0:00:02]} a6 {[%emt 0:00:00]} 4. Ba4 {[%emt 0:00:00]} Nf6 {[%emt 0:00:01]} 5. O-O {[%emt 0:00:02]} Be7 {[%emt 0:00:01]} 6. Re1 {[%emt 0:00:01]} b5 {[%emt 0:00:01]} 7. Bb3 {[%emt 0:00:01]} d6 {[%emt 0:00:02]} 8. c3 {[%emt 0:00:01]} O-O {[%emt 0:00:02]} 9. d4 {[%emt 0:00:09]} Bg4 {[%emt 0:00:02]} 10. d5 {[%emt 0:00:02]} Na5 {[%emt 0:00:02]} 11. Bc2 {[%emt 0:00:01]} c6 {[%emt 0:00:01]} 12. h3 {[%emt 0:00:01]} Bc8 {[%emt 0:00:01]} 13. dxc6 {[%emt 0:00:03]} Qc7 {[%emt 0:00:02]} 14. Nbd2 {[%emt 0:00:02]} Qxc6 {[%emt 0:00:06]} 15. Nf1 {[%emt 0:00:04]} Nc4 {[%emt 0:00:14]} 16. a4 {[%emt 0:00:07]} Re8 {[%emt 0:00:16]} 17. Ng3 {[%emt 0:00:05]} Bf8 {[%emt 0:00:15]} 18. axb5 {[%emt 0:00:19]} axb5 {[%emt 0:00:01]} 19. Rxa8 {[%emt 0:00:01]} Qxa8 {[%emt 0:00:01]} 20. b3 {[%emt 0:00:02]} Nb6 {[%emt 0:00:07]} 21. Bg5 {[%emt 0:00:03]} Nfd7 {[%emt 0:00:13]} 22. Nf5 {[%emt 0:00:08]} Qc6 {[%emt 0:00:02]} 23. Qd2 {[%emt 0:00:22]} Nc5 {[%emt 0:00:28]} 24. Bh4 {[%emt 0:00:41]} f6 {[%emt 0:00:08]} 25. g4 {[%emt 0:00:40]} d5 {[%emt 0:00:11]} 26. Ng3 {[%emt 0:00:09]} Be6 {[%emt 0:00:26]} 27. g5 {[%emt 0:00:03]} dxe4 {[%emt 0:00:13]} 28. Nxe4 {[%emt 0:00:03]} f5 {[%emt 0:00:20]} 29. Nxe5 {[%emt 0:00:01]} Nxe4 {[%emt 0:00:13]} 30. Bxe4 {[%emt 0:00:05]} Qc5 {[%emt 0:00:05]} 31. Bc6 {[%emt 0:00:14]} Rc8 {[%emt 0:00:06]} 32. b4 {[%emt 0:00:02]} Qd6 {[%emt 0:00:06]} 33. Qxd6 Bxd6 {[%emt 0:00:01]} 34. Bxb5 {[%emt 0:00:07]} Rxc3 {[%emt 0:00:02]} 35. Bg3 {[%emt 0:00:11]} Bd5 {[%emt 0:00:11]} 36. Nd7 {[%emt 0:00:06]} Bxg3 {[%emt 0:00:02]} 37. Nxb6 {[%emt 0:00:02]} Be4 {[%emt 0:00:06]} 38. fxg3 {[%emt 0:00:04]} Rxg3+ {[%emt 0:00:00]} 39. Kf2 {[%emt 0:00:00]} Rxh3 {[%emt 0:00:01]} 40. Bc4+ {[%emt 0:00:04]} Kf8 {[%emt 0:00:01]} 41. Bd5 {[%emt 0:00:01]} Rh2+ 42. Ke3 {[%emt 0:00:02]} Bc2 {[%emt 0:00:07]} 43. Kf4 {[%emt 0:00:06]} Rf2+ {[%emt 0:00:01]} 44. Ke5 {[%emt 0:00:01]} f4 {[%emt 0:00:04]} 45. Kd6 {[%emt 0:00:01]} Rd2 {[%emt 0:00:03]} 46. Nd7# {[%emt 0:00:01]} 1-0